bitfinex-derivatives/quotes_ETHF0:USTF0_20250217
["timestamp","ask_amount","ask_price","bid_price","bid_amount"]
[1739822297824,2.58751623,2717.6,2717.5,0.73587]
[1739822298820,0.00551623,2717.6,2717.5,0.73587]
[1739822299831,0.00551623,2717.6,2717.5,4.56253593]
[1739822300027,0.00551623,2717.6,2717.5,5.10413593]
[1739822300628,6.52551,2718.1,2718.0,0.73573]
[1739822302029,5.7898,2718.1,2717.5,5.10413593]
[1739822302229,0.73574,2718.0,2717.5,5.10413593]
[1739822302419,6.52551,2718.1,2718.0,0.73573]
[1739822302825,5.7898,2718.1,2717.5,0.5416]
[1739822303123,0.73578,2717.9,2717.7,0.73581]
[1739822303631,0.5691,2717.9,2717.5,0.5416]
[1739822303933,0.5691,2717.9,2717.8,0.73578]
[1739822304527,3.2078,2718.1,2718.0,0.73573]
[1739822304826,0.57461623,2718.3,2718.2,0.73568]
[1739822306230,1.31027623,2718.3,2718.2,0.73568]
[1739822306430,0.00551623,2718.3,2718.0,0.5599]
[1739822306732,0.74116623,2718.3,2718.2,0.73568]
[1739822307027,1.8392,2718.2,2717.5,3.2078]
[1739822307333,0.73578,2717.9,2717.5,3.7685]
[1739822307526,3.1493,2717.8,2717.7,0.73581]
[1739822309431,1.0712,2718.1,2717.7,0.73581]
[1739822309729,3.1538,2718.1,2718.0,0.73573]
[1739822312629,2.58651623,2718.3,2718.2,0.73568]
[1739822312831,0.00551623,2718.3,2718.2,0.73568]
[1739822313240,0.00551623,2718.3,2718.2,1.30288]
[1739822328941,6.23e-06,2718.3,2718.2,1.30288]
[1739822330947,0.73528,2719.7,2718.2,12.82458]
[1739822331150,0.5845,2719.3,2719.2,0.73541]
[1739822333038,0.00551623,2719.5,2719.4,0.73535]
[1739822335239,0.00551623,2719.5,2719.4,3.94315]
[1739822336452,2.58351623,2719.5,2719.0,0.00551623]
[1739822336646,3.82666593,2719.3,2719.0,0.00551623]
[1739822336947,4.56205593,2719.3,2719.1,0.73541]
[1739822337141,0.5528,2719.2,2719.1,0.73541]
[1739822337346,0.5528,2719.2,2719.1,0.73543]
[1739822338745,1.2882,2719.2,2719.1,0.73543]
[1739822338945,1.2882,2719.2,2719.0,0.00551623]
[1739822339145,3.7606,2719.2,2719.0,0.00551623]
[1739822339453,0.73553,2718.8,2718.2,0.5318]
[1739822339652,3.6912,2718.7,2718.6,0.73557]
[1739822339853,4.42674,2718.7,2718.5,0.73558]
[1739822340262,3.6912,2718.7,2718.2,0.5318]
[1739822340553,3.6912,2718.7,2718.6,0.73557]
[1739822341142,3.82666593,2719.2,2718.3,1.84460623]
[1739822341143,2.577,2719.0,2718.9,0.73549]
[1739822341346,3.6736,2719.0,2718.4,8.74836593]
[1739822341655,3.6736,2719.0,2718.9,0.73549]
[1739822342555,4.255,2719.0,2718.9,0.73549]
[1739822343954,4.255,2719.0,2718.4,8.74836593]
[1739822344163,4.255,2719.0,2718.9,0.73549]
[1739822344365,0.7355,2718.9,2718.7,0.73553]
[1739822344653,0.73551,2718.8,2718.3,1.84463623]
[1739822344956,3.2078,2718.8,2718.3,1.84463623]
[1739822345154,2.41347,2719.0,2718.4,1.83906]
[1739822345357,0.7355,2718.9,2718.8,0.7355]
[1739822345552,0.7355,2718.9,2718.4,5.61846]
[1739822345856,0.73552,2718.8,2718.4,3.7794]
[1739822346055,0.73552,2718.8,2718.7,0.73554]
[1739822346260,4.99048,2719.0,2718.8,0.73549]
[1739822346454,1.678,2719.0,2718.8,0.73549]
[1739822346662,3.21331623,2719.5,2718.9,3.2078]
[1739822346854,0.5703,2719.3,2719.2,0.73541]
[1739822347158,0.5703,2719.3,2718.9,3.2078]
[1739822347357,3.2078,2719.2,2718.6,0.5811]
[1739822347554,0.73546,2719.0,2718.8,0.7355]
[1739822347765,0.5387,2718.9,2718.8,0.7355]
[1739822347957,1.1152,2718.9,2718.8,0.7355]
[1739822348160,0.5765,2718.9,2718.8,0.7355]
[1739822348355,0.5765,2718.9,2718.8,4.56216593]
[1739822350865,0.5652,2719.2,2719.1,0.73543]
[1739822351060,3.21331623,2719.5,2719.1,7.03446593]
[1739822351252,0.00551623,2719.5,2719.4,0.73535]
[1739822352162,0.00551623,2719.5,2719.4,3.94315]
[1739822352365,0.00551623,2719.5,2719.4,7.76981593]
[1739822355856,0.00551623,2719.5,2719.4,0.73535]
[1739822357664,0.00551623,2719.5,2719.1,3.2078]
[1739822357858,0.73543,2719.2,2719.1,0.73543]
[1739822358059,0.73543,2719.2,2718.7,1.8388]
[1739822358060,0.7354,2719.3,2718.8,0.73551]
[1739822358263,0.5447,2719.1,2719.0,0.73546]
[1739822363368,1.28013,2719.1,2719.0,0.73546]
[1739822363875,0.5447,2719.1,2719.0,0.73546]
[1739822365873,1.28013,2719.1,2719.0,0.73546]
[1739822366074,0.5447,2719.1,2719.0,0.73546]
[1739822369079,1.28013,2719.1,2719.0,0.73546]
[1739822369478,0.5447,2719.1,2719.0,0.73546]
[1739822371174,3.31042,2719.2,2719.1,0.73543]
[1739822371375,2.575,2719.2,2719.1,0.73543]
[1739822371781,3.3104,2719.2,2719.1,0.73543]
[1739822372473,2.575,2719.2,2719.1,0.73543]
[1739822376378,3.3104,2719.2,2719.1,0.73543]
[1739822377283,2.575,2719.2,2719.1,0.73543]
[1739822377478,3.3104,2719.2,2719.1,0.73543]
[1739822379685,2.575,2719.2,2719.1,0.73543]
[1739822380379,3.31041,2719.2,2719.1,0.73543]
[1739822380781,2.575,2719.2,2719.1,0.73543]
[1739822380981,3.31041,2719.2,2719.1,0.73543]
[1739822381183,2.575,2719.2,2719.1,0.73543]
[1739822381586,3.31041,2719.2,2719.1,0.73543]
[1739822382079,2.575,2719.2,2719.1,0.73543]
[1739822382388,3.31041,2719.2,2719.1,0.73543]
[1739822384075,0.73546,2719.1,2719.0,0.73543]
[1739822384781,2.575,2719.2,2718.8,1.83878]
[1739822384980,0.73546,2719.1,2719.0,0.73543]
[1739822385181,0.73549,2719.0,2718.9,0.73547]
[1739822385379,1.28039,2719.0,2718.9,0.73547]
[1739822385775,0.73551,2718.9,2718.8,0.7355]
[1739822385987,0.73551,2718.9,2718.6,4.9318]
[1739822385988,0.73554,2718.7,2718.6,4.51156]
[1739822386685,0.73554,2718.7,2718.6,1.30376]
[1739822389989,3.1337,2718.8,2718.3,0.55061623]
[1739822390185,0.73562,2718.4,2718.3,0.74115623]
[1739822390389,3.94342,2718.4,2718.3,0.00551623]
[1739822390693,0.73562,2718.4,2718.3,0.00551623]
[1739822391392,0.73562,2718.4,2718.3,0.74116623]
[1739822391697,0.73562,2718.4,2718.3,0.00551623]
[1739822392184,3.2078,2718.4,2718.3,0.74116623]
[1739822392390,5.7808,2718.4,2718.3,0.74116623]
[1739822392689,6.51642,2718.4,2718.3,0.74116623]
[1739822392892,3.30862,2718.4,2718.3,0.74116623]
[1739822393499,3.30862,2718.4,2718.3,0.00551623]
[1739822394388,3.30862,2718.4,2718.3,0.74116623]
[1739822394588,3.30862,2718.4,2718.3,0.00551623]
[1739822394783,6.51642,2718.4,2718.3,0.00551623]
[1739822395179,6.88442,2718.4,2718.3,0.00551623]
[1739822395584,0.73577,2717.9,2717.7,0.5486]
[1739822395785,0.73577,2717.9,2717.8,0.73577]
[1739822395985,2.573,2718.0,2717.7,0.5486]
[1739822396185,0.73578,2717.9,2717.8,0.73578]
[1739822396386,2.573,2718.0,2717.7,0.5486]
[1739822396692,2.573,2718.0,2717.9,0.73576]
[1739822400089,0.74123623,2718.1,2717.7,2.38812]
[1739822400321,2.57851623,2718.1,2717.7,0.5486]
[1739822400603,0.73578,2717.9,2717.8,0.73577]
[1739822400994,0.73574,2718.0,2717.9,0.73573]
[1739822401291,0.73578,2717.9,2717.8,0.73577]
[1739822401895,0.73576,2717.9,2717.8,0.73575]
[1739822402096,5.78631623,2718.1,2717.9,0.73575]
[1739822402097,0.73575,2718.0,2717.9,0.73575]
[1739822402296,5.78631623,2718.1,2717.7,2.38813]
[1739822402502,5.78631623,2718.1,2717.8,0.73576]
[1739822402503,0.73577,2717.9,2717.8,0.73576]
[1739822403202,5.78631623,2718.1,2717.7,0.5486]
[1739822403700,0.73578,2717.8,2717.7,1.28439]
[1739822404500,0.73581,2717.7,2717.6,0.00551623]
[1739822404701,3.7179,2717.7,2717.0,1.6832]
[1739822405004,3.7179,2717.7,2716.0,0.368]
[1739822405005,7.03446593,2717.1,2716.5,3.7895]
[1739822405201,0.73607,2716.8,2716.6,0.5851]
[1739822405397,3.6939,2717.0,2716.6,0.5851]
[1739822405599,0.73608,2716.7,2716.6,0.5851]
[1739822405793,3.6939,2717.0,2716.5,3.2078]
[1739822406490,1.1219,2717.0,2716.5,3.2078]
[1739822406694,3.2078,2717.6,2716.7,5.66687593]
[1739822406897,4.3252,2717.6,2716.9,1.84008]
[1739822407192,0.00551623,2718.1,2717.5,3.2078]
[1739822407400,0.00551623,2718.1,2717.6,4.96466593]
[1739822407701,0.74122623,2718.1,2717.7,0.7358]
[1739822407905,0.74122623,2718.1,2717.6,5.54046593]
[1739822407906,6.40418216,2718.1,2717.6,1.7138]
[1739822408095,3.2078,2717.7,2717.0,3.82666593]
[1739822408302,0.73596,2717.2,2716.6,3.2078]
[1739822408496,2.572,2717.2,2716.9,0.736]
[1739822408798,2.572,2717.2,2716.7,1.1108]
[1739822409003,2.572,2717.2,2717.1,0.73597]
[1739822409400,3.7449,2717.9,2717.0,3.82666593]
[1739822409594,6.3169,2717.9,2717.8,0.73578]
[1739822409904,0.00551623,2718.1,2718.0,0.73573]
[1739822410207,3.82666593,2718.6,2718.5,0.73557]
[1739822410208,2.572,2718.6,2718.5,0.73557]
[1739822410499,3.2078,2718.8,2718.2,7.03446593]
[1739822410706,2.572,2718.9,2718.6,0.73555]
[1739822411009,3.3075,2718.9,2718.5,0.73559]
[1739822411204,6.39866593,2718.9,2718.3,0.5562]
[1739822411405,3.7888,2718.8,2718.4,0.00551623]
[1739822411708,3.7888,2718.8,2718.6,0.73554]
[1739822411709,3.2078,2718.8,2718.6,0.73554]
[1739822411899,3.2078,2718.8,2718.4,0.00551623]
[1739822412512,3.94333,2718.8,2718.4,0.00551623]
[1739822412701,3.7384,2718.8,2718.4,0.00551623]
[1739822412906,7.77005593,2718.5,2718.4,0.00551623]
[1739822413207,0.73573,2718.0,2717.8,0.5768]
[1739822413403,3.30773,2718.0,2717.5,0.5539]
[1739822413603,1.1116,2717.9,2717.6,0.5768]
[1739822413999,0.7358,2717.8,2717.6,0.5768]
[1739822414201,0.73582,2717.7,2717.5,0.5539]
[1739822415707,0.73581,2717.7,2717.5,0.5539]
[1739822416107,4.3194,2717.9,2717.5,0.5539]
[1739822416303,0.7358,2717.8,2717.5,0.5539]
[1739822416509,4.3194,2717.9,2717.5,0.5539]
[1739822416808,3.2078,2717.9,2717.5,7.58836593]
[1739822417005,3.2078,2717.9,2717.8,0.73578]
[1739822417810,3.2078,2717.9,2717.7,0.7358]
[1739822418202,2.572,2718.1,2717.8,7.03446593]
[1739822418406,2.572,2718.1,2718.0,0.73573]
[1739822418706,3.30763,2718.4,2718.1,0.73568]
[1739822418907,0.73566,2718.3,2717.9,1.659]
[1739822419102,0.73566,2718.3,2718.1,0.73569]
[1739822419303,3.30763,2718.4,2718.1,0.73569]
[1739822419700,3.30763,2718.4,2718.2,0.73568]
[1739822419912,3.30763,2718.4,2717.9,1.659]
[1739822419913,0.73566,2718.3,2718.1,0.73569]
[1739822420211,5.7798,2718.4,2717.9,1.659]
[1739822420514,0.73569,2718.2,2718.0,0.73573]
[1739822421309,5.7798,2718.4,2717.9,1.659]
[1739822421608,5.7798,2718.4,2718.3,0.73565]
[1739822421808,5.7788,2718.4,2718.3,0.73565]
[1739822422410,3.2078,2718.4,2718.3,0.73565]
[1739822423108,3.2078,2718.4,2718.1,3.82666593]
[1739822423109,0.73556,2718.7,2718.1,7.03446593]
[1739822423307,0.73556,2718.7,2718.6,0.73557]
[1739822423616,6.3115,2718.9,2718.1,7.03446593]
[1739822423810,6.3115,2718.9,2718.4,3.82666593]
[1739822424116,0.73553,2718.8,2718.5,1.7085]
[1739822424303,0.73553,2718.8,2718.7,0.73554]
[1739822424805,7.047,2718.9,2718.8,0.73551]
[1739822425010,6.3115,2718.9,2718.8,0.73551]
[1739822425211,6.3115,2718.9,2718.5,1.7085]
[1739822425407,6.3115,2718.9,2718.6,0.73555]
[1739822425613,0.73551,2718.8,2718.7,0.73554]
[1739822425812,6.3115,2718.9,2718.8,0.73551]
[1739822426015,0.73553,2718.8,2718.5,1.7085]
[1739822426211,7.04699,2718.9,2718.8,0.73551]
[1739822426521,0.73553,2718.8,2718.7,0.73553]
[1739822426812,7.047,2718.9,2718.5,1.7085]
[1739822427017,6.3115,2718.9,2718.5,1.7085]
[1739822427222,7.047,2718.9,2718.8,0.73551]
[1739822427415,0.73552,2718.8,2718.7,0.73553]
[1739822427615,6.3115,2718.9,2718.7,0.73553]
[1739822427817,0.73551,2718.8,2718.7,0.73553]
[1739822428214,6.3115,2718.9,2718.5,1.7085]
[1739822428522,7.047,2718.9,2718.8,0.73551]
[1739822428719,6.3115,2718.9,2718.5,1.7085]
[1739822428918,0.73551,2718.8,2718.7,0.73553]
[1739822429925,0.73555,2718.7,2718.6,0.73554]
[1739822430631,0.73555,2718.7,2718.6,0.73553]
[1739822431030,6.3115,2718.9,2718.5,1.7085]
[1739822431220,6.3115,2718.9,2718.8,0.73551]
[1739822431625,7.04699,2718.9,2718.8,0.73551]
[1739822432721,0.73557,2718.6,2718.5,2.44409]
[1739822432923,0.73557,2718.6,2718.5,1.7085]
[1739822433124,0.73556,2718.7,2718.6,0.73554]
[1739822434327,1.83886,2718.7,2717.8,3.2078]
[1739822434632,0.73566,2718.3,2718.2,0.73566]
[1739822434932,0.73566,2718.3,2717.9,2.40199]
[1739822434933,0.73568,2718.2,2718.1,0.7357]
[1739822435230,0.5349,2718.2,2718.1,0.7357]
[1739822436227,1.27058,2718.2,2718.1,0.7357]
[1739822436535,0.73571,2718.1,2717.9,0.73574]
[1739822436737,0.5349,2718.2,2718.0,0.73572]
[1739822437127,0.73571,2718.1,2718.0,0.73572]
[1739822437332,0.5349,2718.2,2717.8,3.7721]
[1739822437531,0.5349,2718.2,2718.1,0.7357]
[1739822438233,5.7768,2718.3,2717.8,9.43820593]
[1739822438433,5.7768,2718.3,2718.2,0.73568]
[1739822438633,5.7768,2718.3,2718.0,1.83932]
[1739822438634,3.2078,2718.9,2718.8,0.7355]
[1739822438830,0.73555,2718.7,2718.2,1.8392]
[1739822439130,6.3474,2718.9,2718.8,0.73551]
[1739822439635,0.73552,2718.8,2718.7,0.73552]
[1739822440028,6.3474,2718.9,2718.4,3.82666593]
[1739822440331,6.3474,2718.9,2718.8,0.73551]
[1739822440931,0.5706,2718.9,2718.8,0.73551]
[1739822441124,2.57451623,2719.0,2718.9,0.73549]
[1739822442236,2.57451623,2719.0,2718.8,0.7355]
[1739822442538,0.73558,2718.6,2718.4,0.73562]
[1739822442828,0.5312,2718.5,2718.4,0.73562]
[1739822443934,5.7768,2718.9,2718.8,0.73551]
[1739822444236,3.2078,2718.9,2718.8,0.73551]
[1739822444436,0.00551623,2719.0,2718.9,0.73549]
[1739822446933,0.74098623,2719.0,2718.9,0.73549]
[1739822447133,0.7355,2718.9,2718.5,1.6112]
[1739822447339,1.3031,2718.9,2718.5,1.6112]
[1739822447536,0.5676,2718.9,2718.8,0.73551]
[1739822447731,0.00551623,2719.0,2718.9,0.73549]
[1739822448341,0.00551623,2719.0,2718.9,1.27789]
[1739822448733,0.368,2719.8,2719.6,0.7353]
[1739822448734,0.5425,2719.7,2719.6,0.7353]
[1739822449935,0.00551623,2719.9,2719.5,7.03446593]
[1739822450131,0.00551623,2719.9,2719.8,0.73524]
[1739822451335,0.00551623,2719.9,2719.8,4.56190593]
[1739822451542,3.2078,2720.5,2719.8,7.03446593]
[1739822451743,0.7351,2720.4,2720.2,0.73512]
[1739822452438,7.3858,2720.6,2719.9,0.5714]
[1739822452636,4.8178,2720.6,2719.9,0.5714]
[1739822452941,4.8178,2720.6,2720.4,0.73507]
[1739822452942,0.00551623,2720.5,2720.4,0.73507]
[1739822455437,0.00551623,2720.5,2720.4,4.56173593]
[1739822456638,0.5662,2721.0,2720.9,0.73495]
[1739822456943,3.94259,2721.5,2721.3,0.73483]
[1739822457145,0.5662,2721.4,2721.3,0.73483]
[1739822457343,0.73485,2721.3,2721.0,0.73492]
[1739822457541,1.30102,2721.4,2721.2,0.73486]
[1739822458041,0.5662,2721.4,2721.0,0.00551623]
[1739822458248,0.5662,2721.4,2721.3,0.73484]
[1739822458748,1.30103,2721.4,2721.2,0.73485]
[1739822458948,3.2078,2721.5,2721.0,4.40288216]
[1739822459140,3.2078,2721.5,2721.4,0.73481]
[1739822459948,3.9426,2721.5,2721.0,4.40288216]
[1739822460151,3.2078,2721.5,2721.4,0.73481]
[1739822462046,0.00551623,2721.6,2721.5,0.73478]
[1739822462445,2.565,2722.3,2722.2,0.73459]
[1739822462844,3.7693,2722.4,2722.2,0.73459]
[1739822463051,3.7693,2722.4,2721.9,0.5646]
[1739822463255,3.7693,2722.4,2722.0,3.82666593]
[1739822463449,3.7693,2722.4,2722.3,0.73457]
[1739822463641,0.00551623,2722.4,2722.3,0.73457]
[1739822464451,0.00551623,2722.4,2722.3,10.56123593]
[1739822464753,3.2078,2723.1,2723.0,0.73438]
[1739822464943,3.2078,2723.1,2722.4,1.83631]
[1739822464944,0.5546,2723.3,2722.8,3.82666593]
[1739822465143,0.368,2723.7,2723.1,3.82666593]
[1739822465144,3.5758,2723.7,2723.1,3.82666593]
[1739822465341,10.4,2724.9,2723.5,3.82666593]
[1739822465342,3.94193,2724.0,2723.5,3.82666593]
[1739822465545,3.2078,2724.0,2723.3,4.56096593]
[1739822465751,0.5546,2723.9,2723.1,3.2078]
[1739822466054,0.73423,2723.6,2723.3,0.00551623]
[1739822466245,0.5546,2723.9,2723.3,3.83218216]
[1739822466554,0.5546,2723.9,2723.3,0.00551623]
[1739822466750,0.73418,2723.8,2723.3,0.00551623]
[1739822467348,3.2078,2723.7,2723.3,0.00551623]
[1739822467552,3.942,2723.7,2723.3,0.00551623]
[1739822467750,3.94207,2723.4,2723.3,0.00551623]
[1739822467952,5.7718,2723.4,2723.3,0.00551623]
[1739822468153,3.2078,2723.4,2723.3,0.00551623]
[1739822468458,2.564,2723.4,2723.3,0.00551623]
[1739822468752,3.2078,2723.7,2723.3,0.00551623]
[1739822468957,5.7718,2723.7,2723.3,0.00551623]
[1739822469556,3.94207,2723.4,2723.3,0.00551623]
[1739822469959,3.2078,2723.4,2723.3,0.00551623]
[1739822470554,3.94207,2723.4,2723.3,0.00551623]
[1739822470745,4.50147,2723.4,2723.3,0.00551623]
[1739822470946,3.7672,2723.4,2723.3,0.00551623]
[1739822471452,4.50147,2723.4,2723.3,0.00551623]
[1739822472254,5.07847,2723.4,2723.3,0.00551623]
[1739822473056,1.83584,2723.2,2722.4,4.78389235]
[1739822473252,3.2078,2722.8,2722.3,0.5644]
[1739822473559,0.73451,2722.6,2722.3,0.5644]
[1739822473754,3.14,2722.7,2722.4,0.73454]
[1739822473952,3.14,2722.7,2722.3,0.5644]
[1739822474152,3.14,2722.7,2722.3,0.56991623]
[1739822474353,0.73453,2722.5,2722.3,0.00551623]
[1739822474854,0.73454,2722.4,2722.3,0.00551623]
[1739822476155,0.73454,2722.4,2722.3,6.23e-06]
[1739822476357,7.29794,2722.4,2722.3,6.23e-06]
[1739822476962,1.83643,2722.3,2721.0,3.662]
[1739822477157,3.2078,2721.7,2721.0,1.099]
[1739822477364,5.7708,2721.7,2721.3,0.73482]
[1739822477566,6.50553,2721.7,2721.2,0.73485]
[1739822477964,5.7708,2721.7,2721.1,4.78389235]
[1739822478165,5.7708,2721.7,2721.2,0.00551623]
[1739822478566,5.7708,2721.7,2721.3,0.73483]
[1739822478767,5.7708,2721.7,2721.2,0.00551623]
[1739822478967,0.73476,2721.6,2721.2,0.00551623]
[1739822479161,0.73483,2721.4,2721.2,0.00551623]
[1739822479563,5.7708,2721.7,2721.2,0.00551623]
[1739822479862,0.73484,2721.3,2721.2,0.00551623]
[1739822480066,0.73483,2721.4,2721.2,0.00551623]
[1739822480266,6.50555,2721.7,2721.2,0.74036623]
[1739822480560,5.7708,2721.7,2721.2,0.74036623]
[1739822480967,5.7708,2721.7,2721.2,0.00551623]
[1739822481263,0.73484,2721.3,2721.2,0.00551623]
[1739822481562,3.29784,2721.3,2721.2,0.00551623]
[1739822481969,3.82764,2721.3,2721.2,0.00551623]
[1739822482859,0.735,2720.7,2720.4,0.5366]
[1739822483059,3.2078,2720.8,2720.4,0.5366]
[1739822483467,2.563,2720.9,2720.4,0.5366]
[1739822483667,2.563,2720.9,2720.6,0.735]
[1739822483855,2.563,2720.9,2720.7,4.78389235]
[1739822484061,2.563,2720.9,2720.5,0.00551623]
[1739822484265,2.563,2720.9,2720.5,0.74055623]
[1739822484763,0.73499,2720.8,2720.5,0.74054623]
[1739822484965,2.563,2720.9,2720.5,0.00551623]
[1739822485266,3.2078,2720.8,2720.5,0.00551623]
[1739822485473,0.73503,2720.6,2720.5,0.00551623]
[1739822485762,3.2078,2720.8,2720.5,0.00551623]
[1739822485968,0.73503,2720.6,2720.5,0.00551623]
[1739822486871,0.73521,2720.0,2719.6,1.26809]
[1739822487165,1.83769,2720.5,2719.5,3.2078]
[1739822487166,0.73527,2719.7,2719.5,3.2078]
[1739822487667,3.2078,2719.9,2719.6,0.73529]
[1739822487963,3.94304,2719.9,2719.6,0.73529]
[1739822488368,3.2078,2719.9,2719.5,3.21331623]
[1739822488666,2.563,2719.8,2719.5,0.00551623]
[1739822488965,0.7353,2719.6,2719.5,0.00551623]
[1739822489173,0.73539,2719.3,2719.0,0.5607]
[1739822489367,3.29837,2719.4,2719.0,0.5607]
[1739822489568,2.563,2719.4,2719.2,0.73539]
[1739822489770,2.563,2719.4,2719.1,0.73542]
[1739822490071,2.563,2719.4,2719.0,0.5607]
[1739822490269,2.563,2719.4,2719.2,0.73538]
[1739822490464,2.563,2719.4,2719.2,0.73539]
[1739822490764,2.563,2719.4,2719.2,0.7354]
[1739822490968,2.563,2719.4,2719.0,0.5607]
[1739822490969,0.73535,2719.4,2719.1,0.73542]
[1739822491164,0.73535,2719.4,2719.0,0.5607]
[1739822491165,2.564,2719.4,2719.0,0.5607]
[1739822491767,2.564,2719.4,2719.1,0.73543]
[1739822492069,2.56951623,2719.5,2719.0,0.5607]
[1739822492267,0.73536,2719.4,2719.1,0.73542]
[1739822492460,3.14271623,2719.5,2719.0,0.5607]
[1739822492667,3.14271623,2719.5,2719.2,0.73539]
[1739822492975,0.73537,2719.4,2719.1,0.73543]
[1739822493166,3.14271623,2719.5,2719.2,0.73538]
[1739822493673,3.14271623,2719.5,2719.0,0.5607]
[1739822493861,0.73538,2719.3,2719.0,1.29614]
[1739822494170,0.73541,2719.2,2719.0,0.5607]
[1739822494370,3.2078,2719.3,2719.2,0.7354]
[1739822495074,2.56951623,2719.5,2719.1,5.33829235]
[1739822495272,2.56951623,2719.5,2719.4,0.73535]
[1739822495574,0.00551623,2719.5,2719.4,0.73535]
[1739822495872,0.00551623,2719.5,2719.2,3.94319]
[1739822496167,0.00551623,2719.5,2719.2,3.2078]
[1739822496473,0.00551623,2719.5,2719.4,0.73535]
[1739822496771,0.00551623,2719.5,2719.2,3.2078]
[1739822497271,0.00551623,2719.5,2719.4,0.73535]
[1739822497672,0.00551623,2719.5,2719.2,3.2078]
[1739822497673,0.00551623,2719.5,2719.2,3.94319]
[1739822497870,0.00551623,2719.5,2719.3,0.73537]
[1739822498070,0.74085623,2719.5,2719.3,0.73537]
[1739822498275,0.00551623,2719.5,2719.1,5.33829235]
[1739822498473,0.73536,2719.4,2719.2,0.73539]
[1739822498672,3.21331623,2719.5,2719.1,0.5544]
[1739822499073,3.94865623,2719.5,2719.3,0.73536]
[1739822499574,3.94865623,2719.5,2719.4,0.73535]
[1739822499976,3.21331623,2719.5,2719.4,0.73535]
[1739822500274,3.94864623,2719.5,2719.3,0.73535]
[1739822500480,3.94864623,2719.5,2719.4,0.73535]
[1739822500875,3.21331623,2719.5,2719.4,0.73535]
[1739822504875,0.00551623,2719.5,2719.4,0.73535]
[1739822505377,0.00551623,2719.5,2719.0,0.5607]
[1739822505581,0.73543,2719.1,2718.9,0.00551623]
[1739822505780,0.73543,2719.1,2719.0,0.73546]
[1739822505977,0.73542,2719.2,2719.0,0.73543]
[1739822506475,0.73546,2719.0,2718.9,0.00551623]
[1739822506682,0.73545,2719.1,2718.9,0.74097623]
[1739822506871,5.7718,2719.3,2718.9,0.00551623]
[1739822507077,5.7718,2719.3,2719.2,0.7354]
[1739822507283,0.73535,2719.4,2719.2,0.7354]
[1739822507675,1.10971623,2719.5,2719.4,0.73535]
[1739822507976,3.67371623,2719.5,2719.4,0.73535]
[1739822509486,2.56951623,2719.5,2719.4,0.73535]
[1739822509984,0.00551623,2719.5,2719.4,0.73535]
[1739822510686,0.00551623,2719.5,2719.0,1.0771]
[1739822510982,0.73537,2719.4,2719.3,0.73536]
[1739822511380,1.27995,2719.4,2719.3,0.73536]
[1739822511578,0.5446,2719.4,2719.3,0.73536]
[1739822511979,0.00551623,2719.5,2719.4,0.73535]
[1739822512880,3.2078,2720.0,2719.9,0.73521]
[1739822513082,0.5446,2720.1,2719.7,3.82804003]
[1739822513282,0.5446,2720.1,2719.6,3.2078]
[1739822513283,1.27978,2720.1,2719.6,3.2078]
[1739822513786,0.5446,2720.1,2720.0,0.73519]
[1739822514086,0.55011623,2720.1,2719.6,3.2078]
[1739822514383,0.55011623,2720.1,2720.0,0.73519]
[1739822514583,0.55011623,2720.1,2719.6,3.2078]
[1739822514778,0.55011623,2720.1,2719.5,3.9757934]
[1739822514779,3.2078,2720.0,2719.5,0.5352]
[1739822514983,3.2078,2719.7,2719.2,1.30370724]
[1739822515198,1.1331,2719.6,2719.2,1.30370724]
[1739822515480,1.8684,2719.6,2719.5,0.73532]
[1739822515687,1.1331,2719.6,2719.5,0.73532]
[1739822517481,1.1331,2719.6,2719.3,0.5342]
[1739822517686,1.8684,2719.6,2719.5,0.73532]
[1739822517886,1.8684,2719.6,2719.4,0.73534]
[1739822518088,1.1331,2719.6,2719.3,0.5342]
[1739822518281,1.86842,2719.6,2719.4,0.73535]
[1739822518788,1.1331,2719.6,2719.3,0.5342]
[1739822518985,1.8684,2719.6,2719.3,0.5342]
[1739822519185,1.1331,2719.6,2719.3,0.5342]
[1739822519383,0.73533,2719.5,2719.3,0.5342]
[1739822519585,1.1331,2719.6,2719.4,0.73534]
[1739822519784,1.1331,2719.6,2719.2,1.6022834]
[1739822520089,0.73532,2719.5,2719.4,0.73534]
[1739822520286,1.1331,2719.6,2719.2,1.6022834]
[1739822520484,1.1331,2719.6,2719.5,0.73532]
[1739822520791,1.1331,2719.6,2719.3,1.6022834]
[1739822520980,0.73534,2719.5,2719.3,0.73536]
[1739822521286,1.1331,2719.6,2719.1,3.82804003]
[1739822521490,1.86841,2719.6,2719.5,0.73532]
[1739822521688,0.73532,2719.5,2719.1,5.66660003]
[1739822521892,0.73535,2719.4,2719.3,0.73537]
[1739822522391,0.73534,2719.5,2719.1,3.82804003]
[1739822522689,0.73539,2719.3,2719.2,0.73539]
[1739822522885,2.563,2719.3,2718.9,2.34327963]
[1739822523090,2.563,2719.3,2718.9,0.00551623]
[1739822523286,3.2078,2719.4,2718.9,0.00551623]
[1739822523483,5.7708,2719.4,2719.3,0.73538]
[1739822523688,3.2078,2719.4,2719.3,0.73538]
[1739822524492,1.1331,2719.6,2719.5,0.73532]
[1739822525584,1.1331,2719.6,2719.2,0.5362]
[1739822525890,0.73544,2719.1,2719.0,0.73544]
[1739822526084,0.73546,2719.0,2718.9,0.00551623]
[1739822526280,0.73546,2719.0,2718.9,0.74099623]
[1739822526485,3.2078,2719.0,2718.4,1.30370724]
[1739822526687,3.7053,2718.9,2718.3,3.2078]
[1739822527193,0.73555,2718.7,2718.4,0.73562]
[1739822527393,3.7053,2718.9,2718.6,0.73556]
[1739822527593,3.7053,2718.9,2718.3,5.66717003]